bitfinex/quotes_ETHUSD_20250508
["timestamp","ask_amount","ask_price","bid_price","bid_amount"]
[1746701722844,5.10873977,1957.5,1956.9,6.7928]
[1746701722845,5.91393615,1957.9,1956.9,3.8118]
[1746701723041,5.10777496,1957.8,1957.0,0.93118]
[1746701723250,5.10926534,1957.3,1956.9,0.8118]
[1746701723399,5.10917966,1957.3,1956.9,0.8118]
[1746701723601,5.1093851,1957.2,1956.9,0.8118]
[1746701723796,10.21898534,1957.2,1956.9,0.8118]
[1746701723996,1.02189853,1957.2,1956.7,0.7787]
[1746701724198,5.89317804,1957.9,1956.8,0.05109968]
[1746701724524,0.7856,1957.4,1956.8,3.0]
[1746701724847,5.10944794,1957.2,1956.8,3.0]
[1746701725049,0.7856,1957.4,1956.7,3.55]
[1746701725254,5.10973817,1957.1,1956.7,3.0]
[1746701725409,5.10949398,1957.2,1956.7,3.0]
[1746701725614,5.10917981,1957.3,1956.9,5.11012092]
[1746701725815,11.5177143,1957.6,1957.1,3.7905]
[1746701725816,11.51775025,1957.6,1957.1,3.7905]
[1746701726041,5.10871571,1957.5,1957.1,3.7905]
[1746701726239,5.10871571,1957.5,1957.2,0.05108897]
[1746701726445,6.409338,1957.6,1957.2,0.05108897]
[1746701726652,5.10856838,1957.5,1957.1,0.7905]
[1746701726851,0.430338,1957.6,1957.2,3.0]
[1746701727018,0.430338,1957.6,1957.5,3.0]
[1746701727222,0.430338,1957.6,1957.5,3.55]
[1746701727422,0.430338,1957.6,1957.4,3.0]
[1746701727946,0.430338,1957.6,1957.4,8.15987118]
[1746701728151,0.430338,1957.6,1957.1,6.08]
[1746701728355,0.430338,1957.6,1957.0,3.7575]
[1746701728356,5.10904125,1957.4,1957.0,3.7575]
[1746701728655,5.10889821,1957.4,1957.0,8.86735141]
[1746701728955,5.10889821,1957.4,1957.0,0.7575]
[1746701729153,5.10889821,1957.4,1957.0,3.7575]
[1746701729154,1.02175513,1957.4,1957.0,3.7575]
[1746701729456,5.53874189,1957.6,1957.2,3.0]
[1746701729659,5.10868646,1957.5,1957.2,3.0]
[1746701729862,5.1085754,1957.5,1957.2,3.0]
[1746701730015,5.1085754,1957.5,1957.1,0.051088]
[1746701730554,0.55389134,1957.5,1957.1,0.051088]
[1746701730759,5.10930283,1957.3,1957.1,0.05109038]
[1746701730915,5.10930283,1957.3,1956.9,11.19008599]
[1746701731116,0.765,1957.4,1956.6,0.7553]
[1746701731320,0.765,1957.4,1956.7,5.16166106]
[1746701731321,5.10984555,1957.1,1956.7,5.16166106]
[1746701731535,10.21966896,1957.1,1956.7,0.05110124]
[1746701731857,5.1097675,1957.1,1956.7,0.05110124]
[1746701732029,5.1097675,1957.1,1956.7,5.54737043]
[1746701732227,5.11005052,1957.0,1956.7,0.05110124]
[1746701732442,5.11005052,1957.0,1956.7,6.13110124]
[1746701732739,11.08620581,1957.3,1956.7,11.24171986]
[1746701733047,5.10961922,1957.1,1956.7,11.19061862]
[1746701733251,5.1098637,1957.0,1956.8,0.05109738]
[1746701733454,7.16212058,1957.3,1956.8,0.05109738]
[1746701733455,5.10975284,1957.1,1956.8,0.05109738]
[1746701734576,12.27128907,1957.3,1956.9,5.11010849]
[1746701734740,5.10943882,1957.2,1956.8,8.11029526]
[1746701734940,5.1093583,1957.2,1956.8,3.05109739]
[1746701735148,12.27131817,1957.3,1956.8,3.05109739]
[1746701735335,0.430338,1957.6,1957.1,3.0]
[1746701735336,6.31520805,1957.6,1957.1,3.0]
[1746701735541,0.430338,1957.6,1957.3,5.10896241]
[1746701735873,0.430338,1957.6,1957.4,3.0]
[1746701736227,0.430338,1957.6,1957.2,3.0]
[1746701736439,0.430338,1957.6,1957.4,3.0]
[1746701736639,0.430338,1957.6,1957.5,0.05108453]
[1746701736870,0.430338,1957.6,1957.5,8.15964136]
[1746701737166,0.430338,1957.6,1957.5,14.78964136]
[1746701737332,0.430338,1957.6,1957.5,14.73855683]
[1746701737537,0.430338,1957.6,1957.5,46.53094483]
[1746701737729,0.05,1958.0,1957.9,5.10751315]
[1746701737937,0.05,1958.0,1957.9,43.49534615]
[1746701738278,5.12589485,1958.6,1958.2,1.3201]
[1746701738434,5.12589485,1958.6,1958.2,15.50668736]
[1746701738630,5.12589485,1958.6,1958.5,3.0]
[1746701738631,0.02,1958.6,1958.5,3.0]
[1746701738826,0.02,1958.6,1958.5,42.11890141]
[1746701739172,0.02,1958.6,1958.5,2.16951375]
[1746701739371,0.02,1958.6,1958.5,4.18964705]
[1746701739571,0.02,1958.6,1958.5,4.73964705]
[1746701739756,0.05,1959.0,1958.7,0.55]
[1746701739967,0.05,1959.0,1958.9,9.46380581]
[1746701740168,0.430338,1959.5,1958.9,34.792388]
[1746701740352,5.5336861,1959.5,1958.7,6.8889]
[1746701740553,5.10477044,1959.0,1958.7,0.8089]
[1746701740762,5.10483613,1959.0,1958.7,0.8089]
[1746701741174,0.8069,1959.2,1958.5,3.38074705]
[1746701741489,0.8069,1959.2,1958.0,8.975]
[1746701741490,5.10594842,1958.5,1958.0,5.91592357]
[1746701741691,0.8069,1959.2,1958.2,0.37812775]
[1746701741692,5.1062213,1958.4,1958.2,0.37812775]
[1746701741990,5.10605829,1958.5,1958.2,0.05106025]
[1746701742188,11.07938466,1959.1,1958.1,3.39818217]
[1746701742189,5.10673067,1958.2,1958.1,3.39818217]
[1746701742370,5.974,1958.6,1958.1,3.39818217]
[1746701742553,0.5974,1958.5,1958.2,0.05106646]
[1746701742753,0.8269,1958.7,1958.2,0.84726646]
[1746701742754,11.07955181,1958.7,1958.2,0.84726646]
[1746701742947,11.07931458,1958.8,1958.4,3.0]
[1746701743141,11.07931458,1958.8,1958.2,5.90284269]
[1746701743142,5.10579297,1958.6,1958.2,3.7962]
[1746701743388,5.10579231,1958.6,1958.2,0.84725478]
[1746701743545,5.10557011,1958.7,1958.4,3.0]
[1746701743750,6.21352712,1958.7,1958.3,3.55]
[1746701743960,5.10579593,1958.6,1958.3,0.55]
[1746701744178,5.1064465,1958.4,1958.0,8.10720313]
[1746701744492,5.10622566,1958.4,1958.1,0.55]
[1746701744645,1.10795701,1958.7,1958.2,0.05106015]
[1746701744987,5.10493203,1958.9,1958.2,0.05106015]
[1746701744988,5.10438466,1959.1,1958.7,3.0]
[1746701745161,10.20902408,1959.1,1958.7,3.0]
[1746701745474,5.10416413,1959.2,1958.5,3.0]
[1746701745662,5.104849,1959.0,1958.6,0.05104756]
[1746701745862,5.10458956,1959.1,1958.7,3.0]
[1746701746187,0.7873,1959.9,1959.2,3.0]
[1746701746345,5.10378823,1959.4,1959.0,3.0]
[1746701746549,5.10378823,1959.4,1959.1,0.05103566]
[1746701746770,5.10388409,1959.3,1959.1,0.05103566]
[1746701746974,5.10360314,1959.4,1959.0,3.0]
[1746701747283,11.10317608,1959.6,1959.1,0.05103567]
[1746701747487,5.53369995,1959.5,1959.2,3.0]
[1746701747686,0.430338,1959.5,1959.2,3.0]
[1746701747887,0.430338,1959.5,1959.3,0.05103506]
[1746701748190,0.430338,1959.5,1959.4,9.46140314]
[1746701748344,15.21892642,1961.2,1959.4,6.91505477]
[1746701748345,5.10190586,1960.1,1959.4,6.91505477]
[1746701748547,5.10190586,1960.1,1959.6,5.10308226]
[1746701748750,5.10188555,1960.1,1959.7,5.10277992]
[1746701748975,5.10179559,1960.1,1959.7,5.15366817]
[1746701749156,5.10320419,1959.6,1959.4,0.8078]
[1746701749458,0.8347,1960.0,1959.4,3.8078]
[1746701749663,5.10230113,1959.9,1959.4,0.8078]
[1746701749876,0.005,1960.0,1959.5,5.10334268]
[1746701750076,5.10246129,1959.9,1959.5,3.0]
[1746701750287,5.10717186,1960.0,1959.6,0.05102724]
[1746701750491,5.10232228,1959.9,1959.6,0.05102292]
[1746701750789,5.10282186,1959.7,1959.3,0.37624687]
[1746701750994,5.10715465,1960.0,1959.4,3.8156]
[1746701751189,0.7987,1959.6,1959.1,0.46269925]
[1746701751390,0.51071547,1959.9,1959.2,0.0510333]
[1746701751693,0.005,1960.0,1959.8,5.10246176]
[1746701751882,0.005,1960.0,1959.9,21.71277072]
[1746701752054,0.13976,1961.0,1960.5,0.8156]
[1746701752254,0.3775876,1964.1,1963.2,0.0245]
[1746701752453,0.45603251,1967.2,1963.5,0.0245]
[1746701752694,0.430338,1967.2,1965.0,5.08880682]
[1746701752865,0.430338,1967.2,1965.1,3.0]
[1746701752866,0.1,1966.4,1965.1,3.0]
[1746701753066,0.7987,1966.8,1965.2,3.0]
[1746701753254,5.08646998,1966.0,1965.8,3.0]
[1746701753457,0.7987,1966.8,1964.7,0.0245]
[1746701753778,0.7987,1966.8,1963.7,0.91404456]
[1746701753779,0.7987,1965.6,1964.0,0.8156]
[1746701753990,5.08870876,1965.2,1964.0,0.8156]
[1746701754275,5.09168701,1964.0,1963.3,0.383608]
[1746701754484,25.477,1965.5,1962.5,3.0]
[1746701754485,25.766,1963.9,1962.5,3.0]
[1746701754664,0.7987,1965.6,1961.9,3.80310994]
[1746701754879,5.09098407,1964.3,1962.8,3.0]
[1746701755202,5.0944435,1963.0,1962.1,3.0]
[1746701755500,3.7987,1964.1,1963.9,4.37947505]
[1746701755501,8.09164969,1964.0,1963.9,4.37947505]
[1746701755876,13.38664969,1964.0,1963.9,4.37947505]
[1746701756082,16.38664969,1964.0,1963.9,2.05040505]
[1746701756264,8.09164969,1964.0,1963.9,1.21710505]
[1746701756471,34.75564969,1964.0,1963.9,1.21710505]
[1746701756791,3.0,1963.4,1963.0,7.4053057]
[1746701756990,5.09450303,1962.9,1962.8,8.55258393]
[1746701757193,26.45750303,1962.9,1962.8,5.19017393]
[1746701757507,34.74950303,1962.9,1962.8,4.39897393]
[1746701757680,5.09502216,1962.7,1961.4,13.68413429]
[1746701757868,8.09606074,1962.3,1962.2,8.33585288]
[1746701758069,5.09813917,1961.5,1961.4,9.54637429]
[1746701758314,5.09965591,1961.0,1960.1,5.95150983]
[1746701758624,8.292,1960.9,1960.2,0.05100325]
[1746701758815,5.09917903,1961.1,1961.0,0.06903274]
[1746701758965,5.09892331,1961.2,1961.0,0.06903274]
[1746701759171,8.292,1961.1,1960.1,5.95150983]
[1746701759369,0.8292,1961.0,1960.3,5.10103978]
[1746701759603,0.8292,1961.0,1960.4,5.15189827]
[1746701759801,8.292,1960.9,1960.3,5.10117458]
[1746701760025,8.292,1960.9,1960.4,0.05099784]
[1746701760225,8.292,1960.9,1960.2,5.10152025]
[1746701760528,8.292,1960.9,1960.4,5.10081983]
[1746701760721,8.292,1960.9,1960.2,5.1014955]
[1746701760882,1.01960193,1961.5,1960.1,0.7514]
[1746701761217,5.86399683,1962.3,1960.3,5.10126001]
[1746701761218,5.09916517,1961.2,1960.3,5.10126001]
[1746701761395,13.39226079,1961.1,1960.3,5.10117121]
[1746701761726,8.293,1961.0,1960.1,5.85310978]
[1746701761879,18.364,1961.7,1960.1,5.85310978]
[1746701761880,5.09865017,1961.4,1960.2,0.05099989]
[1746701762083,8.293,1962.3,1960.9,5.09948747]
[1746701762283,5.09717626,1961.9,1961.1,5.09898843]
[1746701762518,5.09717626,1961.9,1961.2,5.09890112]
[1746701762812,5.09711468,1961.9,1961.2,5.14982484]
[1746701763018,3.0,1962.5,1961.2,5.14982484]
[1746701763019,0.50950222,1962.6,1962.1,5.09657753]
[1746701763185,0.50950222,1962.6,1962.1,5.09635661]
[1746701763380,13.38815698,1962.7,1961.9,3.0]
[1746701763580,18.364,1962.9,1962.0,5.0967886]
[1746701763581,5.09543082,1962.6,1962.0,5.0967886]
[1746701763785,5.09081838,1964.4,1962.6,3.0]
[1746701763986,8.616,1964.3,1962.7,3.0509317]
[1746701764228,8.616,1964.3,1963.3,0.7884]
[1746701764427,0.8616,1964.2,1963.4,0.05091496]
[1746701764729,0.1,1966.2,1963.7,8.85902756]
[1746701764884,8.616,1966.6,1964.6,0.55]
[1746701765229,8.616,1966.5,1965.4,0.55]
[1746701765383,5.08420681,1966.9,1965.7,0.7894]
[1746701765579,27.08,1967.0,1965.1,0.7894]
[1746701765783,5.08639311,1966.1,1965.4,5.0880213]
[1746701765984,5.08534766,1966.5,1965.1,0.7894]
[1746701766207,5.08844872,1965.3,1964.6,5.87941456]
[1746701766404,5.08798619,1965.5,1964.7,0.55]
[1746701766614,5.0856866,1966.4,1965.1,0.55]
[1746701766615,8.61,1966.4,1965.1,0.55]
[1746701766828,0.861,1966.3,1965.2,3.0]
[1746701767026,5.0861571,1966.2,1965.2,5.13939332]
[1746701767228,2.708,1966.9,1965.0,0.55]
[1746701767530,8.61,1966.8,1965.4,0.55]
[1746701767683,8.61,1966.8,1964.7,3.0]
[1746701767684,5.08465958,1966.7,1964.9,6.0]
[1746701768016,7.79220198,1966.9,1965.2,0.5]
[1746701768017,9.11846596,1966.6,1965.2,0.5]
[1746701768220,5.08828168,1965.3,1965.2,0.5]
[1746701768395,5.88380023,1966.5,1964.8,3.0]
[1746701768719,0.50846596,1966.6,1965.4,3.0]
[1746701769018,0.50846596,1966.6,1964.9,8.14012147]
[1746701769019,8.976,1967.0,1966.1,0.8331]
[1746701769209,5.08481449,1966.7,1966.1,0.8331]
[1746701769414,5.08414255,1966.9,1965.5,0.8331]
[1746701769719,5.08693438,1965.9,1965.5,0.8331]
[1746701770022,5.08795073,1965.5,1965.0,0.8182]
[1746701770185,0.50879507,1965.5,1965.0,0.8182]
[1746701770390,8.876,1966.1,1965.0,0.8182]
[1746701770608,23.42822962,1966.5,1965.1,0.05086865]
[1746701770919,5.08569394,1966.3,1965.1,3.0]
[1746701771086,18.343,1966.5,1965.4,5.08795272]
[1746701771292,5.08664664,1966.0,1965.5,0.05086669]
[1746701771492,5.08596814,1966.2,1965.5,5.13843858]
[1746701771720,5.18399359,1967.0,1966.3,5.085454]
[1746701771906,0.1,1967.0,1966.5,3.0]
[1746701772112,5.08116794,1968.1,1967.1,0.55]
[1746701772310,0.8303,1968.8,1967.0,0.757]
[1746701772633,0.430338,1969.2,1968.2,3.55]
[1746701772791,9.166,1969.1,1968.5,0.8055]
[1746701772991,9.166,1969.1,1967.7,0.8055]
[1746701773192,9.166,1969.1,1967.9,3.0]
[1746701773506,5.0789781,1968.9,1967.9,3.0]
[1746701773704,2.0031,1969.0,1967.7,0.8055]
[1746701773903,1.1988,1969.0,1967.7,0.8055]
[1746701774222,1.1988,1969.0,1967.2,3.0]
[1746701774223,1.1988,1969.0,1968.9,5.0789781]
[1746701774524,1.1988,1969.0,1968.9,9.4043781]
[1746701774726,1.1988,1969.0,1968.9,8.752291]
[1746701774890,1.1988,1969.0,1968.9,0.7754]
[1746701775414,10.6768,1969.0,1967.7,0.7754]
[1746701775590,4.06768,1968.9,1967.2,0.7754]
[1746701775794,4.06768,1968.9,1967.3,0.05081653]
[1746701776014,1.06768,1968.9,1967.3,3.0]
[1746701776322,1.1988,1969.0,1967.8,3.0]
[1746701776635,1.1988,1969.0,1968.6,3.0]
[1746701776838,1.1988,1969.0,1968.7,4.587382]
[1746701777002,9.819,1968.9,1968.2,5.08078197]
[1746701777201,1.1988,1969.0,1968.4,3.0]
[1746701777430,1.1988,1969.0,1967.9,0.8236]
[1746701777636,5.07944181,1968.8,1968.1,5.08088407]
[1746701777818,1.1988,1969.0,1967.3,0.7947]
[1746701778139,5.08259212,1967.5,1967.4,0.05080506]
[1746701778339,5.08440105,1966.8,1966.7,0.7947]
[1746701778493,5.0854298,1966.5,1965.3,0.7947]
[1746701778694,18.314,1966.4,1965.3,0.7947]
[1746701778895,5.08621128,1966.1,1965.3,0.7947]
[1746701779099,5.08763026,1965.6,1964.7,0.7703]
[1746701779413,5.08821328,1965.4,1964.8,0.050877]
[1746701779934,7.11877646,1965.4,1964.8,5.0895675]
[1746701780102,7.11877646,1965.4,1964.7,0.7703]
[1746701780103,2.03070122,1965.4,1964.7,0.7703]
[1746701780431,5.08920018,1965.0,1964.3,5.09062494]
[1746701780601,5.08920018,1965.0,1964.4,5.09047593]
[1746701780803,5.08920018,1965.0,1964.5,0.05089046]
[1746701780999,0.7729,1966.5,1965.2,10.177828]
[1746701781246,10.133,1966.4,1965.3,0.7772]
[1746701781451,6.09903496,1966.3,1965.4,5.08802279]
[1746701781638,6.0990679,1966.3,1965.3,0.7772]
[1746701781852,5.08778991,1965.5,1965.3,0.7772]
[1746701782038,5.08778991,1965.5,1964.8,5.84148559]
[1746701782366,5.08750508,1965.6,1964.9,0.05087754]
[1746701782561,0.50875051,1965.5,1964.8,5.84156687]
[1746701782766,5.08822323,1965.4,1964.9,0.05088174]
[1746701782950,5.08893106,1965.1,1964.4,5.09052771]
[1746701783250,10.133,1965.7,1964.5,0.05088623]
[1746701783641,5.08750508,1965.6,1964.9,5.08929536]
[1746701783851,10.133,1965.7,1965.0,5.13991797]
[1746701784037,5.08753669,1965.6,1965.1,5.08864729]
[1746701784352,5.0880207,1965.5,1964.9,5.08919899]
[1746701784553,5.08891882,1965.1,1964.8,0.05087907]
[1746701784753,11.1463,1965.7,1963.9,3.0]
[1746701784754,5.08951684,1964.9,1963.9,3.0]
[1746701784988,10.134,1965.0,1964.0,5.09154836]
[1746701785153,5.08879955,1965.1,1964.1,0.05090461]
[1746701785154,5.09054182,1964.5,1964.1,0.05090461]
[1746701785352,11.1474,1964.9,1963.8,5.89419657]
[1746701785353,5.09101762,1964.3,1963.9,0.05090362]
[1746701785539,5.09129296,1964.2,1963.8,0.8021]
[1746701785738,5.09167877,1964.0,1963.8,0.05090952]
[1746701786056,5.09009513,1964.6,1964.1,5.0912375]
[1746701786453,5.08988008,1964.7,1964.2,5.09100401]
[1746701786636,18.319,1965.5,1964.3,0.05090173]
[1746701786838,18.319,1965.5,1964.7,5.08963985]
[1746701786839,5.08880517,1965.1,1964.7,5.08963985]
[1746701787029,5.08839972,1965.3,1964.3,5.09087206]
[1746701787234,5.08882475,1965.1,1964.5,5.09027163]
[1746701787430,5.08824649,1965.4,1964.5,8.09035377]
[1746701787658,5.08811707,1965.4,1964.9,5.08914725]
[1746701787941,5.08882888,1965.1,1964.6,5.08990421]
[1746701788146,5.08858606,1965.2,1964.7,5.0896595]
[1746701788358,5.08858606,1965.2,1964.8,0.05088931]
[1746701788359,5.0888889,1965.1,1964.8,0.05088931]
[1746701788562,5.0888889,1965.1,1964.2,0.8234]
[1746701788563,5.0888889,1965.1,1964.6,5.08997632]
[1746701788767,5.08866234,1965.2,1964.6,0.05088964]
[1746701788971,28.456,1965.5,1964.7,5.08979239]
[1746701789171,5.08973084,1964.8,1964.4,3.0]
[1746701789468,5.08838293,1965.3,1964.6,0.05088447]
[1746701789669,28.456,1965.5,1964.2,0.8234]
[1746701789835,0.26588757,1967.0,1965.1,0.55]
[1746701790036,5.08441118,1966.8,1966.4,0.7867]
[1746701790240,0.50844112,1966.8,1965.9,3.0]
[1746701790458,0.02960556,1966.7,1965.7,0.7867]
[1746701790758,0.02960556,1966.8,1965.8,0.05085733]
[1746701790957,0.02960556,1967.3,1965.8,5.08698748]
[1746701791167,5.08433453,1966.9,1966.3,5.08566638]
[1746701791400,5.08382634,1967.1,1966.5,5.08517659]
[1746701791602,10.137,1967.4,1966.6,0.05084669]
[1746701791758,0.02960556,1967.2,1966.5,5.08504471]
[1746701791962,5.08366551,1967.1,1966.6,0.05084102]
[1746701792157,5.08374805,1967.1,1966.5,5.08504129]
[1746701792389,5.11369463,1967.0,1966.4,5.08541875]
[1746701792591,5.11369463,1967.0,1966.5,0.0508462]
[1746701792592,5.08417539,1966.9,1966.5,0.0508462]
[1746701792797,0.02960556,1966.8,1966.2,0.45002931]
[1746701792994,5.08524927,1966.5,1965.8,5.08698441]
[1746701793164,5.08592388,1966.3,1965.8,5.13784972]
[1746701793364,5.08700961,1965.8,1965.2,5.08848164]
[1746701793566,5.11556535,1966.2,1965.1,5.90697686]
[1746701793567,5.08776837,1965.5,1965.1,5.90697686]
[1746701793864,5.08776837,1965.5,1964.9,5.0892403]
[1746701793865,0.02960556,1965.5,1964.6,0.8183]
[1746701794070,5.08800761,1965.5,1965.2,0.45485906]
[1746701794290,10.68482344,1965.5,1965.2,0.45485906]
[1746701794604,5.08828168,1965.3,1965.2,0.45485906]
[1746701794770,5.08828168,1965.3,1964.7,5.08972225]
[1746701794967,0.02960556,1965.2,1964.6,0.8183]
[1746701795173,5.08679479,1965.9,1965.3,5.08816438]
[1746701795370,5.08753834,1965.6,1965.0,5.08890813]
[1746701795573,5.11750074,1965.5,1965.0,5.08890813]
[1746701795798,0.8164,1965.3,1963.7,0.7585]
[1746701795997,10.16560556,1965.2,1964.2,0.05089722]
[1746701796199,10.16560556,1965.2,1964.4,5.09044395]
[1746701796418,5.08997163,1964.7,1964.1,5.35680877]
[1746701796618,5.09088095,1964.3,1963.7,5.85076099]
[1746701796773,5.11893447,1964.9,1963.7,0.7585]
[1746701797102,10.16560556,1964.8,1963.8,0.05091756]
[1746701797314,10.16560556,1964.8,1963.6,5.35851272]
[1746701797513,5.09113124,1964.2,1963.3,5.09335509]
[1746701797696,5.09292279,1963.6,1963.4,0.45598788]
[1746701797905,5.12255182,1963.5,1963.4,0.45598788]
[1746701798109,0.02960556,1963.5,1963.4,0.45598788]
[1746701798620,10.136,1964.1,1962.9,5.41139719]
[1746701798621,0.02960556,1963.9,1962.9,5.41139719]
[1746701798772,0.02960556,1963.9,1963.1,5.09394681]
[1746701799101,5.09270224,1963.6,1962.9,0.26601678]
[1746701799302,0.02960556,1963.6,1962.9,0.31694905]
[1746701799504,5.09270437,1963.6,1963.1,5.09378658]
[1746701799670,0.02960556,1963.5,1962.9,5.549551]
[1746701799871,0.02960556,1963.5,1963.2,5.09369504]
[1746701800104,5.12218808,1963.7,1963.0,0.05093954]
[1746701800405,5.09297372,1963.5,1963.0,5.09410965]
[1746701800607,10.139,1963.4,1963.1,5.09381065]
[1746701800914,5.09296623,1963.5,1963.1,5.09397883]
[1746701801123,0.02960556,1963.5,1963.1,5.09397883]
[1746701801270,0.02960556,1963.5,1962.6,5.36127885]
[1746701801476,5.09320566,1963.4,1962.3,0.05094188]
[1746701801772,5.09387132,1963.2,1962.5,5.0955414]
[1746701802101,0.02960556,1963.1,1962.7,5.09481285]
[1746701802305,10.142,1963.5,1962.2,0.7996]
[1746701802469,0.82050556,1963.4,1962.4,5.09580105]
[1746701802676,10.17160556,1963.4,1962.2,0.7996]
[1746701802974,0.02960556,1963.4,1962.4,5.09580105]
[1746701803177,10.142,1963.6,1962.2,3.7996]
[1746701803382,5.09448866,1963.0,1962.5,5.09539195]
[1746701803592,5.12421474,1962.9,1962.4,5.14663289]
[1746701803807,0.02960556,1962.9,1962.5,5.09552169]
[1746701804119,5.12417109,1962.9,1962.5,5.09552169]
[1746701804319,0.02960556,1962.9,1962.5,5.09552169]
[1746701804517,0.02960556,1962.9,1962.2,0.7996]
[1746701804817,0.02960556,1962.9,1962.5,5.0954865]
[1746701804818,5.09453517,1962.9,1962.5,5.0954865]
[1746701805005,5.09436295,1963.0,1962.4,3.0]
[1746701805205,5.12422685,1962.9,1962.2,1.41583061]
[1746701805409,0.02960556,1962.9,1962.6,5.09522105]
[1746701805618,5.093984,1963.1,1962.6,5.09522105]
[1746701805924,5.09387771,1963.2,1962.7,0.05094863]
[1746701806220,0.02960556,1963.1,1962.2,0.7996]
[1746701806391,0.02960556,1963.4,1962.2,0.7996]
[1746701806594,5.09525094,1962.7,1962.2,5.09619161]
[1746701806842,5.09564271,1962.5,1962.1,0.72219795]
[1746701807133,10.144,1962.8,1962.3,5.09594971]
[1746701807319,10.144,1962.8,1962.4,5.09556719]
[1746701807504,15.26846203,1962.8,1962.4,5.09566079]
[1746701807831,5.09485647,1962.8,1962.4,5.09566079]
[1746701807989,0.02960556,1962.8,1962.4,5.09566079]
[1746701808322,5.09541036,1962.6,1962.2,5.09619858]
[1746701808524,0.02960556,1962.7,1962.0,0.05095672]
[1746701808688,14.9505792,1962.9,1962.5,5.09541367]
[1746701808689,5.0945052,1962.9,1962.5,5.09541367]
[1746701808884,0.02960556,1962.8,1962.5,5.09541367]
[1746701809091,0.02960556,1962.8,1962.2,3.0]
[1746701809391,5.09416275,1963.1,1962.6,5.09507907]
[1746701809622,5.12376831,1963.1,1962.6,10.19020094]
[1746701809802,5.09436733,1963.0,1962.6,5.09507907]
[1746701810107,5.09436733,1963.0,1962.6,5.0952596]
[1746701810421,5.12375477,1963.1,1962.6,5.09510508]
[1746701810623,5.09434205,1963.0,1962.6,5.09510508]
[1746701810934,5.0934495,1963.4,1962.9,5.09438737]
[1746701811112,5.09383729,1963.2,1962.6,1.019058]
[1746701811298,5.09413261,1963.1,1962.6,5.09518699]
[1746701811502,5.09443119,1963.0,1962.5,5.09536576]
[1746701811703,5.09383554,1963.2,1962.8,5.09473647]
[1746701812023,0.02960556,1963.3,1962.8,5.14559798]
[1746701812191,5.09384248,1963.2,1962.8,5.09465554]
[1746701812388,0.02960556,1963.2,1962.9,5.09448489]
[1746701812598,14.95004636,1963.5,1963.1,5.09383604]
[1746701812799,9.857,1963.5,1963.3,5.09328132]
[1746701813021,5.12212736,1963.7,1963.0,0.05094244]
[1746701813229,5.12212736,1963.7,1963.0,5.09402081]
[1746701813230,5.09314672,1963.5,1963.0,5.09402081]
[1746701813392,5.09346669,1963.3,1962.9,5.09444947]
[1746701813594,5.1229467,1963.4,1962.7,0.7911]
[1746701813595,5.1228261,1963.4,1962.7,0.7911]
[1746701813793,5.09275831,1963.6,1962.8,0.05093667]
[1746701814126,0.02960556,1963.5,1963.2,5.09360509]
[1746701814318,0.02960556,1963.5,1963.1,5.093817]
[1746701814517,5.1225802,1963.5,1963.1,5.093817]
[1746701814823,0.02960556,1963.6,1963.3,5.09335883]
[1746701815005,0.02960556,1963.8,1963.3,0.50933588]
[1746701815205,14.9489942,1963.9,1963.5,5.0927424]
[1746701815523,9.857,1963.9,1963.8,5.09216824]
[1746701815692,5.12109382,1964.1,1963.5,5.0928328]
[1746701815893,0.7959,1963.8,1963.2,0.45680062]
[1746701816121,0.7959,1963.8,1962.8,5.09456364]
[1746701816122,5.09366127,1963.3,1962.8,5.09456364]
[1746701816320,5.09390492,1963.2,1962.8,5.09456364]
[1746701816527,5.09320566,1963.4,1962.4,0.45680062]
[1746701816692,5.09414852,1963.1,1962.6,5.09506606]
[1746701817027,5.0938418,1963.2,1962.7,5.09501211]
[1746701817228,5.0938418,1963.2,1962.8,5.09464026]
[1746701817391,0.02960556,1963.3,1963.0,5.09421307]
[1746701817595,5.12311126,1963.3,1962.8,0.05094609]
[1746701817794,5.12311126,1963.3,1962.9,5.09441836]
[1746701817795,5.12320902,1963.3,1962.9,5.09441836]
[1746701817990,5.12322955,1963.3,1962.7,5.09483204]
[1746701818225,5.09389829,1963.2,1962.7,5.09481028]
[1746701818402,5.09409648,1963.1,1962.6,5.09515347]
[1746701818595,5.09409648,1963.1,1962.7,0.05094427]
[1746701818798,5.12395997,1963.0,1962.6,5.09527187]
[1746701818997,0.02960556,1963.0,1962.3,3.0]
[1746701819198,5.09346508,1963.3,1962.8,5.09465066]
[1746701819421,5.12284687,1963.4,1962.9,5.09439243]
[1746701819618,5.12284687,1963.4,1962.4,3.3]
[1746701819619,0.02960556,1963.4,1962.4,3.3]
[1746701819935,5.09383865,1963.2,1962.5,0.45728577]
[1746701820137,5.09401107,1963.1,1962.7,5.09483301]
[1746701820337,5.12336728,1963.2,1962.7,5.1457747]
[1746701820540,5.12336728,1963.2,1962.8,5.09466039]
[1746701820836,5.12336728,1963.2,1962.9,5.09447916]
[1746701820837,0.02960556,1963.2,1962.9,5.09447916]
[1746701821131,0.02960556,1963.3,1962.9,5.0944027]
[1746701821335,9.572,1963.4,1963.0,0.05094041]
[1746701821503,0.02960556,1963.3,1962.7,0.45875731]
[1746701821703,5.09428964,1963.0,1962.7,0.45875731]
[1746701821904,5.12309482,1963.3,1962.7,0.45875731]
[1746701822104,5.09476258,1962.8,1962.7,0.45875731]
[1746701822399,5.12436814,1962.8,1962.7,0.45875731]
[1746701822800,6.14626476,1962.8,1962.7,0.45875731]
[1746701823552,0.02960556,1962.8,1962.7,0.45875731]
[1746701823705,5.12436814,1962.8,1962.7,0.45875731]
[1746701824842,5.09467626,1962.9,1962.7,0.45875731]
[1746701824843,5.12428182,1962.9,1962.7,0.45875731]
[1746701825046,5.92134628,1963.0,1962.7,0.45875731]
[1746701825241,5.12394628,1963.0,1962.7,0.45875731]
[1746701825413,5.12394628,1963.0,1962.8,0.45875731]
[1746701825620,5.09450303,1962.9,1962.8,0.45875731]
[1746701825944,5.12391718,1963.0,1962.8,0.45875731]
[1746701826460,0.02960556,1963.0,1962.8,0.45875731]
[1746701826664,5.0942435,1963.0,1962.9,0.45875731]
[1746701827064,5.1237567,1963.1,1962.9,0.45875731]
[1746701827226,5.12367293,1963.1,1962.9,0.45875731]
[1746701827428,0.02960556,1963.1,1962.9,0.45875731]
[1746701827740,19.3002,1963.4,1963.0,5.83105899]